{"text_format":"3","workbook":"xlsx","n_sheets":3,"sheets":["ข้อมูลของลูกค้าเป้าหมาย","ยอดขายที่คาดการณ์ไว้ ","น้ำหนักการคาดการณ์รายเดือน"],"not_rendered":{"charts":1,"defined_names":10},"read":"whole","date_system":"1900"}

{"sheet":"ข้อมูลของลูกค้าเป้าหมาย","index":0,"n_rows":9,"n_cols":10,"rows_kept":9,"merged":[[3,1,3,8]]}
[null,"ชื่อบริษัท"]
[null,"การติดตามลูกค้าเป้าหมายโดยละเอียด"]
[null,{"$f":"TODAY()","v":"2018-07-26"}]
[null,{"$f":"ชื่อบริษัท","v":"ชื่อบริษัท"},{"$nulls":7},"เป็นความลับ"]
[null,"ชื่อลูกค้าเป้าหมาย","ที่ติดต่อใหม่","แหล่งข้อมูล\nลูกค้าเป้าหมาย ","ภูมิภาค\nลูกค้าเป้าหมาย","ชนิด\nลูกค้าเป้าหมาย","โอกาสทางการขายที่เป็นไปได้","โอกาส \nของการขาย","ปิด\nการคาดการณ์","น้ำหนัก \nการคาดการณ์"]
[null,"A. Datum Corporation",{"$nulls":3},"กลยุทธ์",{"v":300000,"d":"฿300,000.00"},{"v":0.9,"d":"90%"},"มกราคม",{"$f":"IFERROR(IF(ข้อมูลของลูกค้าเป้าหมาย[โอกาส \nของการขาย]<>\"\",ข้อมูลของลูกค้าเป้าหมาย[โอกาส \nของการขาย]*ข้อมูลของลูกค้าเป้าหมาย[โอกาสทางการขายที่เป็นไปได้],\"\"),\"\")","v":{"v":270000,"d":"฿270,000.00"}}]
[null,"Adventure Works",{"$nulls":3},"กลยุทธ์",{"v":200000,"d":"฿200,000.00"},{"v":0.1,"d":"10%"},"กุมภาพันธ์",{"$f":"IFERROR(IF(ข้อมูลของลูกค้าเป้าหมาย[โอกาส \nของการขาย]<>\"\",ข้อมูลของลูกค้าเป้าหมาย[โอกาส \nของการขาย]*ข้อมูลของลูกค้าเป้าหมาย[โอกาสทางการขายที่เป็นไปได้],\"\"),\"\")","v":{"v":20000,"d":"฿20,000.00"}}]
[null,"Alpine Ski House",{"$nulls":3},"ด้านกลยุทธ์",{"v":100000,"d":"฿100,000.00"},{"v":0.2,"d":"20%"},"มีนาคม",{"$f":"IFERROR(IF(ข้อมูลของลูกค้าเป้าหมาย[โอกาส \nของการขาย]<>\"\",ข้อมูลของลูกค้าเป้าหมาย[โอกาส \nของการขาย]*ข้อมูลของลูกค้าเป้าหมาย[โอกาสทางการขายที่เป็นไปได้],\"\"),\"\")","v":{"v":20000,"d":"฿20,000.00"}}]
[null,"ผลรวม",{"$nulls":4},{"$f":"SUBTOTAL(109,ข้อมูลของลูกค้าเป้าหมาย[โอกาสทางการขายที่เป็นไปได้])","v":{"v":600000,"d":"฿600,000.00"}},null,null,{"$f":"SUBTOTAL(109,ข้อมูลของลูกค้าเป้าหมาย[น้ำหนัก \nการคาดการณ์])","v":{"v":310000,"d":"฿310,000.00"}}]

{"sheet":"ยอดขายที่คาดการณ์ไว้ ","index":1,"n_rows":21,"n_cols":14,"rows_kept":21,"merged":[[3,1,3,11],[3,12,3,13]]}
[null,{"$f":"ชื่อบริษัท","v":"ชื่อบริษัท"}]
[null,"ยอดขายที่คาดการณ์ไว้"]
[null,{"$f":"วันที่ติดตาม","v":"2018-07-26"}]
[null,{"$f":"ชื่อบริษัท","v":"ชื่อบริษัท"},{"$nulls":10},"เป็นความลับ"]
[null,"ชื่อลูกค้าเป้าหมาย","การคาดการณ์\nมกราคม","การคาดการณ์\nกุมภาพันธ์","การคาดการณ์\nมีนาคม ","การคาดการณ์\nเมษายน","การคาดการณ์\nพฤษภาคม","การคาดการณ์\nมิถุนายน","การคาดการณ์\nกรกฎาคม","การคาดการณ์\nสิงหาคม","การคาดการณ์\nกันยายน","การคาดการณ์\nตุลาคม","การคาดการณ์\nพฤศจิกายน","การคาดการณ์\nธันวาคม"]
[null,{"$f":"IFERROR(IF(AND(ข้อมูลของลูกค้าเป้าหมาย[ชื่อลูกค้าเป้าหมาย] <> \"\", ROW(ยอดขายที่คาดการณ์ไว้[ชื่อลูกค้าเป้าหมาย])<>การป้อนข้อมูลล่าสุด),ข้อมูลของลูกค้าเป้าหมาย[ชื่อลูกค้าเป้าหมาย], \"\"),\"\")","v":"A. Datum Corporation"},{"$f":"IFERROR(IF(ข้อมูลของลูกค้าเป้าหมาย[ปิด\nการคาดการณ์] <>\"\",IF(ข้อมูลของลูกค้าเป้าหมาย[ปิด\nการคาดการณ์]= \"มกราคม\",ข้อมูลของลูกค้าเป้าหมาย[น้ำหนัก \nการคาดการณ์],0),\"\"),\"\")","v":{"v":270000,"d":"฿270,000"}},{"$f":"IFERROR(IF(ข้อมูลของลูกค้าเป้าหมาย[ปิด\nการคาดการณ์] <>\"\",IF(ข้อมูลของลูกค้าเป้าหมาย[ปิด\nการคาดการณ์] = \"กุมภาพันธ์\",ข้อมูลของลูกค้าเป้าหมาย[น้ำหนัก \nการคาดการณ์],0),\"\"),\"\")","v":{"v":0,"d":"฿0"}},{"$f":"IFERROR(IF(ข้อมูลของลูกค้าเป้าหมาย[ปิด\nการคาดการณ์] <>\"\",IF(ข้อมูลของลูกค้าเป้าหมาย[ปิด\nการคาดการณ์] = \"มีนาคม\",ข้อมูลของลูกค้าเป้าหมาย[น้ำหนัก \nการคาดการณ์],0),\"\"),\"\")","v":{"v":0,"d":"฿0"}},{"$f":"IFERROR(IF(ข้อมูลของลูกค้าเป้าหมาย[ปิด\nการคาดการณ์] <>\"\",IF(ข้อมูลของลูกค้าเป้าหมาย[ปิด\nการคาดการณ์] = \"เมษายน\",ข้อมูลของลูกค้าเป้าหมาย[น้ำหนัก \nการคาดการณ์],0),\"\"),\"\")","v":{"v":0,"d":"฿0"}},{"$f":"IFERROR(IF(ข้อมูลของลูกค้าเป้าหมาย[ปิด\nการคาดการณ์] <>\"\",IF(ข้อมูลของลูกค้าเป้าหมาย[ปิด\nการคาดการณ์] = \"พฤษภาคม\",ข้อมูลของลูกค้าเป้าหมาย[น้ำหนัก \nการคาดการณ์],0),\"\"),\"\")","v":{"v":0,"d":"฿0"}},{"$f":"IFERROR(IF(ข้อมูลของลูกค้าเป้าหมาย[ปิด\nการคาดการณ์] <>\"\",IF(ข้อมูลของลูกค้าเป้าหมาย[ปิด\nการคาดการณ์] = \"มิถุนายน\",ข้อมูลของลูกค้าเป้าหมาย[น้ำหนัก \nการคาดการณ์],0),\"\"),\"\")","v":{"v":0,"d":"฿0"}},{"$f":"IFERROR(IF(ข้อมูลของลูกค้าเป้าหมาย[ปิด\nการคาดการณ์] <>\"\",IF(ข้อมูลของลูกค้าเป้าหมาย[ปิด\nการคาดการณ์] = \"กรกฎาคม\",ข้อมูลของลูกค้าเป้าหมาย[น้ำหนัก \nการคาดการณ์],0),\"\"),\"\")","v":{"v":0,"d":"฿0"}},{"$f":"IFERROR(IF(ข้อมูลของลูกค้าเป้าหมาย[ปิด\nการคาดการณ์] <>\"\",IF(ข้อมูลของลูกค้าเป้าหมาย[ปิด\nการคาดการณ์] = \"สิงหาคม\",ข้อมูลของลูกค้าเป้าหมาย[น้ำหนัก \nการคาดการณ์],0),\"\"),\"\")","v":{"v":0,"d":"฿0"}},{"$f":"IFERROR(IF(ข้อมูลของลูกค้าเป้าหมาย[ปิด\nการคาดการณ์] <>\"\",IF(ข้อมูลของลูกค้าเป้าหมาย[ปิด\nการคาดการณ์] = \"กันยายน\",ข้อมูลของลูกค้าเป้าหมาย[น้ำหนัก \nการคาดการณ์],0),\"\"),\"\")","v":{"v":0,"d":"฿0"}},{"$f":"IFERROR(IF(ข้อมูลของลูกค้าเป้าหมาย[ปิด\nการคาดการณ์] <>\"\",IF(ข้อมูลของลูกค้าเป้าหมาย[ปิด\nการคาดการณ์] = \"ตุลาคม\",ข้อมูลของลูกค้าเป้าหมาย[น้ำหนัก \nการคาดการณ์],0),\"\"),\"\")","v":{"v":0,"d":"฿0"}},{"$f":"IFERROR(IF(ข้อมูลของลูกค้าเป้าหมาย[ปิด\nการคาดการณ์] <>\"\",IF(ข้อมูลของลูกค้าเป้าหมาย[ปิด\nการคาดการณ์] = \"พฤศจิกายน\",ข้อมูลของลูกค้าเป้าหมาย[น้ำหนัก \nการคาดการณ์],0),\"\"),\"\")","v":{"v":0,"d":"฿0"}},{"$f":"IFERROR(IF(ข้อมูลของลูกค้าเป้าหมาย[ปิด\nการคาดการณ์] <>\"\",IF(ข้อมูลของลูกค้าเป้าหมาย[ปิด\nการคาดการณ์] = \"ธันวาคม\",ข้อมูลของลูกค้าเป้าหมาย[น้ำหนัก \nการคาดการณ์],0),\"\"),\"\")","v":{"v":0,"d":"฿0"}}]
[null,{"$f":"IFERROR(IF(AND(ข้อมูลของลูกค้าเป้าหมาย[ชื่อลูกค้าเป้าหมาย] <> \"\", ROW(ยอดขายที่คาดการณ์ไว้[ชื่อลูกค้าเป้าหมาย])<>การป้อนข้อมูลล่าสุด),ข้อมูลของลูกค้าเป้าหมาย[ชื่อลูกค้าเป้าหมาย], \"\"),\"\")","v":"Adventure Works"},{"$f":"IFERROR(IF(ข้อมูลของลูกค้าเป้าหมาย[ปิด\nการคาดการณ์] <>\"\",IF(ข้อมูลของลูกค้าเป้าหมาย[ปิด\nการคาดการณ์]= \"มกราคม\",ข้อมูลของลูกค้าเป้าหมาย[น้ำหนัก \nการคาดการณ์],0),\"\"),\"\")","v":{"v":0,"d":"฿0"}},{"$f":"IFERROR(IF(ข้อมูลของลูกค้าเป้าหมาย[ปิด\nการคาดการณ์] <>\"\",IF(ข้อมูลของลูกค้าเป้าหมาย[ปิด\nการคาดการณ์] = \"กุมภาพันธ์\",ข้อมูลของลูกค้าเป้าหมาย[น้ำหนัก \nการคาดการณ์],0),\"\"),\"\")","v":{"v":20000,"d":"฿20,000"}},{"$f":"IFERROR(IF(ข้อมูลของลูกค้าเป้าหมาย[ปิด\nการคาดการณ์] <>\"\",IF(ข้อมูลของลูกค้าเป้าหมาย[ปิด\nการคาดการณ์] = \"มีนาคม\",ข้อมูลของลูกค้าเป้าหมาย[น้ำหนัก \nการคาดการณ์],0),\"\"),\"\")","v":{"v":0,"d":"฿0"}},{"$f":"IFERROR(IF(ข้อมูลของลูกค้าเป้าหมาย[ปิด\nการคาดการณ์] <>\"\",IF(ข้อมูลของลูกค้าเป้าหมาย[ปิด\nการคาดการณ์] = \"เมษายน\",ข้อมูลของลูกค้าเป้าหมาย[น้ำหนัก \nการคาดการณ์],0),\"\"),\"\")","v":{"v":0,"d":"฿0"}},{"$f":"IFERROR(IF(ข้อมูลของลูกค้าเป้าหมาย[ปิด\nการคาดการณ์] <>\"\",IF(ข้อมูลของลูกค้าเป้าหมาย[ปิด\nการคาดการณ์] = \"พฤษภาคม\",ข้อมูลของลูกค้าเป้าหมาย[น้ำหนัก \nการคาดการณ์],0),\"\"),\"\")","v":{"v":0,"d":"฿0"}},{"$f":"IFERROR(IF(ข้อมูลของลูกค้าเป้าหมาย[ปิด\nการคาดการณ์] <>\"\",IF(ข้อมูลของลูกค้าเป้าหมาย[ปิด\nการคาดการณ์] = \"มิถุนายน\",ข้อมูลของลูกค้าเป้าหมาย[น้ำหนัก \nการคาดการณ์],0),\"\"),\"\")","v":{"v":0,"d":"฿0"}},{"$f":"IFERROR(IF(ข้อมูลของลูกค้าเป้าหมาย[ปิด\nการคาดการณ์] <>\"\",IF(ข้อมูลของลูกค้าเป้าหมาย[ปิด\nการคาดการณ์] = \"กรกฎาคม\",ข้อมูลของลูกค้าเป้าหมาย[น้ำหนัก \nการคาดการณ์],0),\"\"),\"\")","v":{"v":0,"d":"฿0"}},{"$f":"IFERROR(IF(ข้อมูลของลูกค้าเป้าหมาย[ปิด\nการคาดการณ์] <>\"\",IF(ข้อมูลของลูกค้าเป้าหมาย[ปิด\nการคาดการณ์] = \"สิงหาคม\",ข้อมูลของลูกค้าเป้าหมาย[น้ำหนัก \nการคาดการณ์],0),\"\"),\"\")","v":{"v":0,"d":"฿0"}},{"$f":"IFERROR(IF(ข้อมูลของลูกค้าเป้าหมาย[ปิด\nการคาดการณ์] <>\"\",IF(ข้อมูลของลูกค้าเป้าหมาย[ปิด\nการคาดการณ์] = \"กันยายน\",ข้อมูลของลูกค้าเป้าหมาย[น้ำหนัก \nการคาดการณ์],0),\"\"),\"\")","v":{"v":0,"d":"฿0"}},{"$f":"IFERROR(IF(ข้อมูลของลูกค้าเป้าหมาย[ปิด\nการคาดการณ์] <>\"\",IF(ข้อมูลของลูกค้าเป้าหมาย[ปิด\nการคาดการณ์] = \"ตุลาคม\",ข้อมูลของลูกค้าเป้าหมาย[น้ำหนัก \nการคาดการณ์],0),\"\"),\"\")","v":{"v":0,"d":"฿0"}},{"$f":"IFERROR(IF(ข้อมูลของลูกค้าเป้าหมาย[ปิด\nการคาดการณ์] <>\"\",IF(ข้อมูลของลูกค้าเป้าหมาย[ปิด\nการคาดการณ์] = \"พฤศจิกายน\",ข้อมูลของลูกค้าเป้าหมาย[น้ำหนัก \nการคาดการณ์],0),\"\"),\"\")","v":{"v":0,"d":"฿0"}},{"$f":"IFERROR(IF(ข้อมูลของลูกค้าเป้าหมาย[ปิด\nการคาดการณ์] <>\"\",IF(ข้อมูลของลูกค้าเป้าหมาย[ปิด\nการคาดการณ์] = \"ธันวาคม\",ข้อมูลของลูกค้าเป้าหมาย[น้ำหนัก \nการคาดการณ์],0),\"\"),\"\")","v":{"v":0,"d":"฿0"}}]
[null,{"$f":"IFERROR(IF(AND(ข้อมูลของลูกค้าเป้าหมาย[ชื่อลูกค้าเป้าหมาย] <> \"\", ROW(ยอดขายที่คาดการณ์ไว้[ชื่อลูกค้าเป้าหมาย])<>การป้อนข้อมูลล่าสุด),ข้อมูลของลูกค้าเป้าหมาย[ชื่อลูกค้าเป้าหมาย], \"\"),\"\")","v":"Alpine Ski House"},{"$f":"IFERROR(IF(ข้อมูลของลูกค้าเป้าหมาย[ปิด\nการคาดการณ์] <>\"\",IF(ข้อมูลของลูกค้าเป้าหมาย[ปิด\nการคาดการณ์]= \"มกราคม\",ข้อมูลของลูกค้าเป้าหมาย[น้ำหนัก \nการคาดการณ์],0),\"\"),\"\")","v":{"v":0,"d":"฿0"}},{"$f":"IFERROR(IF(ข้อมูลของลูกค้าเป้าหมาย[ปิด\nการคาดการณ์] <>\"\",IF(ข้อมูลของลูกค้าเป้าหมาย[ปิด\nการคาดการณ์] = \"กุมภาพันธ์\",ข้อมูลของลูกค้าเป้าหมาย[น้ำหนัก \nการคาดการณ์],0),\"\"),\"\")","v":{"v":0,"d":"฿0"}},{"$f":"IFERROR(IF(ข้อมูลของลูกค้าเป้าหมาย[ปิด\nการคาดการณ์] <>\"\",IF(ข้อมูลของลูกค้าเป้าหมาย[ปิด\nการคาดการณ์] = \"มีนาคม\",ข้อมูลของลูกค้าเป้าหมาย[น้ำหนัก \nการคาดการณ์],0),\"\"),\"\")","v":{"v":20000,"d":"฿20,000"}},{"$f":"IFERROR(IF(ข้อมูลของลูกค้าเป้าหมาย[ปิด\nการคาดการณ์] <>\"\",IF(ข้อมูลของลูกค้าเป้าหมาย[ปิด\nการคาดการณ์] = \"เมษายน\",ข้อมูลของลูกค้าเป้าหมาย[น้ำหนัก \nการคาดการณ์],0),\"\"),\"\")","v":{"v":0,"d":"฿0"}},{"$f":"IFERROR(IF(ข้อมูลของลูกค้าเป้าหมาย[ปิด\nการคาดการณ์] <>\"\",IF(ข้อมูลของลูกค้าเป้าหมาย[ปิด\nการคาดการณ์] = \"พฤษภาคม\",ข้อมูลของลูกค้าเป้าหมาย[น้ำหนัก \nการคาดการณ์],0),\"\"),\"\")","v":{"v":0,"d":"฿0"}},{"$f":"IFERROR(IF(ข้อมูลของลูกค้าเป้าหมาย[ปิด\nการคาดการณ์] <>\"\",IF(ข้อมูลของลูกค้าเป้าหมาย[ปิด\nการคาดการณ์] = \"มิถุนายน\",ข้อมูลของลูกค้าเป้าหมาย[น้ำหนัก \nการคาดการณ์],0),\"\"),\"\")","v":{"v":0,"d":"฿0"}},{"$f":"IFERROR(IF(ข้อมูลของลูกค้าเป้าหมาย[ปิด\nการคาดการณ์] <>\"\",IF(ข้อมูลของลูกค้าเป้าหมาย[ปิด\nการคาดการณ์] = \"กรกฎาคม\",ข้อมูลของลูกค้าเป้าหมาย[น้ำหนัก \nการคาดการณ์],0),\"\"),\"\")","v":{"v":0,"d":"฿0"}},{"$f":"IFERROR(IF(ข้อมูลของลูกค้าเป้าหมาย[ปิด\nการคาดการณ์] <>\"\",IF(ข้อมูลของลูกค้าเป้าหมาย[ปิด\nการคาดการณ์] = \"สิงหาคม\",ข้อมูลของลูกค้าเป้าหมาย[น้ำหนัก \nการคาดการณ์],0),\"\"),\"\")","v":{"v":0,"d":"฿0"}},{"$f":"IFERROR(IF(ข้อมูลของลูกค้าเป้าหมาย[ปิด\nการคาดการณ์] <>\"\",IF(ข้อมูลของลูกค้าเป้าหมาย[ปิด\nการคาดการณ์] = \"กันยายน\",ข้อมูลของลูกค้าเป้าหมาย[น้ำหนัก \nการคาดการณ์],0),\"\"),\"\")","v":{"v":0,"d":"฿0"}},{"$f":"IFERROR(IF(ข้อมูลของลูกค้าเป้าหมาย[ปิด\nการคาดการณ์] <>\"\",IF(ข้อมูลของลูกค้าเป้าหมาย[ปิด\nการคาดการณ์] = \"ตุลาคม\",ข้อมูลของลูกค้าเป้าหมาย[น้ำหนัก \nการคาดการณ์],0),\"\"),\"\")","v":{"v":0,"d":"฿0"}},{"$f":"IFERROR(IF(ข้อมูลของลูกค้าเป้าหมาย[ปิด\nการคาดการณ์] <>\"\",IF(ข้อมูลของลูกค้าเป้าหมาย[ปิด\nการคาดการณ์] = \"พฤศจิกายน\",ข้อมูลของลูกค้าเป้าหมาย[น้ำหนัก \nการคาดการณ์],0),\"\"),\"\")","v":{"v":0,"d":"฿0"}},{"$f":"IFERROR(IF(ข้อมูลของลูกค้าเป้าหมาย[ปิด\nการคาดการณ์] <>\"\",IF(ข้อมูลของลูกค้าเป้าหมาย[ปิด\nการคาดการณ์] = \"ธันวาคม\",ข้อมูลของลูกค้าเป้าหมาย[น้ำหนัก \nการคาดการณ์],0),\"\"),\"\")","v":{"v":0,"d":"฿0"}}]
[null,{"$f":"IFERROR(IF(AND(ข้อมูลของลูกค้าเป้าหมาย[ชื่อลูกค้าเป้าหมาย] <> \"\", ROW(ยอดขายที่คาดการณ์ไว้[ชื่อลูกค้าเป้าหมาย])<>การป้อนข้อมูลล่าสุด),ข้อมูลของลูกค้าเป้าหมาย[ชื่อลูกค้าเป้าหมาย], \"\"),\"\")","v":""},{"$f":"IFERROR(IF(ข้อมูลของลูกค้าเป้าหมาย[ปิด\nการคาดการณ์] <>\"\",IF(ข้อมูลของลูกค้าเป้าหมาย[ปิด\nการคาดการณ์]= \"มกราคม\",ข้อมูลของลูกค้าเป้าหมาย[น้ำหนัก \nการคาดการณ์],0),\"\"),\"\")","v":""},{"$f":"IFERROR(IF(ข้อมูลของลูกค้าเป้าหมาย[ปิด\nการคาดการณ์] <>\"\",IF(ข้อมูลของลูกค้าเป้าหมาย[ปิด\nการคาดการณ์] = \"กุมภาพันธ์\",ข้อมูลของลูกค้าเป้าหมาย[น้ำหนัก \nการคาดการณ์],0),\"\"),\"\")","v":""},{"$f":"IFERROR(IF(ข้อมูลของลูกค้าเป้าหมาย[ปิด\nการคาดการณ์] <>\"\",IF(ข้อมูลของลูกค้าเป้าหมาย[ปิด\nการคาดการณ์] = \"มีนาคม\",ข้อมูลของลูกค้าเป้าหมาย[น้ำหนัก \nการคาดการณ์],0),\"\"),\"\")","v":""},{"$f":"IFERROR(IF(ข้อมูลของลูกค้าเป้าหมาย[ปิด\nการคาดการณ์] <>\"\",IF(ข้อมูลของลูกค้าเป้าหมาย[ปิด\nการคาดการณ์] = \"เมษายน\",ข้อมูลของลูกค้าเป้าหมาย[น้ำหนัก \nการคาดการณ์],0),\"\"),\"\")","v":""},{"$f":"IFERROR(IF(ข้อมูลของลูกค้าเป้าหมาย[ปิด\nการคาดการณ์] <>\"\",IF(ข้อมูลของลูกค้าเป้าหมาย[ปิด\nการคาดการณ์] = \"พฤษภาคม\",ข้อมูลของลูกค้าเป้าหมาย[น้ำหนัก \nการคาดการณ์],0),\"\"),\"\")","v":""},{"$f":"IFERROR(IF(ข้อมูลของลูกค้าเป้าหมาย[ปิด\nการคาดการณ์] <>\"\",IF(ข้อมูลของลูกค้าเป้าหมาย[ปิด\nการคาดการณ์] = \"มิถุนายน\",ข้อมูลของลูกค้าเป้าหมาย[น้ำหนัก \nการคาดการณ์],0),\"\"),\"\")","v":""},{"$f":"IFERROR(IF(ข้อมูลของลูกค้าเป้าหมาย[ปิด\nการคาดการณ์] <>\"\",IF(ข้อมูลของลูกค้าเป้าหมาย[ปิด\nการคาดการณ์] = \"กรกฎาคม\",ข้อมูลของลูกค้าเป้าหมาย[น้ำหนัก \nการคาดการณ์],0),\"\"),\"\")","v":""},{"$f":"IFERROR(IF(ข้อมูลของลูกค้าเป้าหมาย[ปิด\nการคาดการณ์] <>\"\",IF(ข้อมูลของลูกค้าเป้าหมาย[ปิด\nการคาดการณ์] = \"สิงหาคม\",ข้อมูลของลูกค้าเป้าหมาย[น้ำหนัก \nการคาดการณ์],0),\"\"),\"\")","v":""},{"$f":"IFERROR(IF(ข้อมูลของลูกค้าเป้าหมาย[ปิด\nการคาดการณ์] <>\"\",IF(ข้อมูลของลูกค้าเป้าหมาย[ปิด\nการคาดการณ์] = \"กันยายน\",ข้อมูลของลูกค้าเป้าหมาย[น้ำหนัก \nการคาดการณ์],0),\"\"),\"\")","v":""},{"$f":"IFERROR(IF(ข้อมูลของลูกค้าเป้าหมาย[ปิด\nการคาดการณ์] <>\"\",IF(ข้อมูลของลูกค้าเป้าหมาย[ปิด\nการคาดการณ์] = \"ตุลาคม\",ข้อมูลของลูกค้าเป้าหมาย[น้ำหนัก \nการคาดการณ์],0),\"\"),\"\")","v":""},{"$f":"IFERROR(IF(ข้อมูลของลูกค้าเป้าหมาย[ปิด\nการคาดการณ์] <>\"\",IF(ข้อมูลของลูกค้าเป้าหมาย[ปิด\nการคาดการณ์] = \"พฤศจิกายน\",ข้อมูลของลูกค้าเป้าหมาย[น้ำหนัก \nการคาดการณ์],0),\"\"),\"\")","v":""},{"$f":"IFERROR(IF(ข้อมูลของลูกค้าเป้าหมาย[ปิด\nการคาดการณ์] <>\"\",IF(ข้อมูลของลูกค้าเป้าหมาย[ปิด\nการคาดการณ์] = \"ธันวาคม\",ข้อมูลของลูกค้าเป้าหมาย[น้ำหนัก \nการคาดการณ์],0),\"\"),\"\")","v":""}]
[null,{"$f":"IFERROR(IF(AND(ข้อมูลของลูกค้าเป้าหมาย[ชื่อลูกค้าเป้าหมาย] <> \"\", ROW(ยอดขายที่คาดการณ์ไว้[ชื่อลูกค้าเป้าหมาย])<>การป้อนข้อมูลล่าสุด),ข้อมูลของลูกค้าเป้าหมาย[ชื่อลูกค้าเป้าหมาย], \"\"),\"\")","v":""},{"$f":"IFERROR(IF(ข้อมูลของลูกค้าเป้าหมาย[ปิด\nการคาดการณ์] <>\"\",IF(ข้อมูลของลูกค้าเป้าหมาย[ปิด\nการคาดการณ์]= \"มกราคม\",ข้อมูลของลูกค้าเป้าหมาย[น้ำหนัก \nการคาดการณ์],0),\"\"),\"\")","v":""},{"$f":"IFERROR(IF(ข้อมูลของลูกค้าเป้าหมาย[ปิด\nการคาดการณ์] <>\"\",IF(ข้อมูลของลูกค้าเป้าหมาย[ปิด\nการคาดการณ์] = \"กุมภาพันธ์\",ข้อมูลของลูกค้าเป้าหมาย[น้ำหนัก \nการคาดการณ์],0),\"\"),\"\")","v":""},{"$f":"IFERROR(IF(ข้อมูลของลูกค้าเป้าหมาย[ปิด\nการคาดการณ์] <>\"\",IF(ข้อมูลของลูกค้าเป้าหมาย[ปิด\nการคาดการณ์] = \"มีนาคม\",ข้อมูลของลูกค้าเป้าหมาย[น้ำหนัก \nการคาดการณ์],0),\"\"),\"\")","v":""},{"$f":"IFERROR(IF(ข้อมูลของลูกค้าเป้าหมาย[ปิด\nการคาดการณ์] <>\"\",IF(ข้อมูลของลูกค้าเป้าหมาย[ปิด\nการคาดการณ์] = \"เมษายน\",ข้อมูลของลูกค้าเป้าหมาย[น้ำหนัก \nการคาดการณ์],0),\"\"),\"\")","v":""},{"$f":"IFERROR(IF(ข้อมูลของลูกค้าเป้าหมาย[ปิด\nการคาดการณ์] <>\"\",IF(ข้อมูลของลูกค้าเป้าหมาย[ปิด\nการคาดการณ์] = \"พฤษภาคม\",ข้อมูลของลูกค้าเป้าหมาย[น้ำหนัก \nการคาดการณ์],0),\"\"),\"\")","v":""},{"$f":"IFERROR(IF(ข้อมูลของลูกค้าเป้าหมาย[ปิด\nการคาดการณ์] <>\"\",IF(ข้อมูลของลูกค้าเป้าหมาย[ปิด\nการคาดการณ์] = \"มิถุนายน\",ข้อมูลของลูกค้าเป้าหมาย[น้ำหนัก \nการคาดการณ์],0),\"\"),\"\")","v":""},{"$f":"IFERROR(IF(ข้อมูลของลูกค้าเป้าหมาย[ปิด\nการคาดการณ์] <>\"\",IF(ข้อมูลของลูกค้าเป้าหมาย[ปิด\nการคาดการณ์] = \"กรกฎาคม\",ข้อมูลของลูกค้าเป้าหมาย[น้ำหนัก \nการคาดการณ์],0),\"\"),\"\")","v":""},{"$f":"IFERROR(IF(ข้อมูลของลูกค้าเป้าหมาย[ปิด\nการคาดการณ์] <>\"\",IF(ข้อมูลของลูกค้าเป้าหมาย[ปิด\nการคาดการณ์] = \"สิงหาคม\",ข้อมูลของลูกค้าเป้าหมาย[น้ำหนัก \nการคาดการณ์],0),\"\"),\"\")","v":""},{"$f":"IFERROR(IF(ข้อมูลของลูกค้าเป้าหมาย[ปิด\nการคาดการณ์] <>\"\",IF(ข้อมูลของลูกค้าเป้าหมาย[ปิด\nการคาดการณ์] = \"กันยายน\",ข้อมูลของลูกค้าเป้าหมาย[น้ำหนัก \nการคาดการณ์],0),\"\"),\"\")","v":""},{"$f":"IFERROR(IF(ข้อมูลของลูกค้าเป้าหมาย[ปิด\nการคาดการณ์] <>\"\",IF(ข้อมูลของลูกค้าเป้าหมาย[ปิด\nการคาดการณ์] = \"ตุลาคม\",ข้อมูลของลูกค้าเป้าหมาย[น้ำหนัก \nการคาดการณ์],0),\"\"),\"\")","v":""},{"$f":"IFERROR(IF(ข้อมูลของลูกค้าเป้าหมาย[ปิด\nการคาดการณ์] <>\"\",IF(ข้อมูลของลูกค้าเป้าหมาย[ปิด\nการคาดการณ์] = \"พฤศจิกายน\",ข้อมูลของลูกค้าเป้าหมาย[น้ำหนัก \nการคาดการณ์],0),\"\"),\"\")","v":""},{"$f":"IFERROR(IF(ข้อมูลของลูกค้าเป้าหมาย[ปิด\nการคาดการณ์] <>\"\",IF(ข้อมูลของลูกค้าเป้าหมาย[ปิด\nการคาดการณ์] = \"ธันวาคม\",ข้อมูลของลูกค้าเป้าหมาย[น้ำหนัก \nการคาดการณ์],0),\"\"),\"\")","v":""}]
[null,{"$f":"IFERROR(IF(AND(ข้อมูลของลูกค้าเป้าหมาย[ชื่อลูกค้าเป้าหมาย] <> \"\", ROW(ยอดขายที่คาดการณ์ไว้[ชื่อลูกค้าเป้าหมาย])<>การป้อนข้อมูลล่าสุด),ข้อมูลของลูกค้าเป้าหมาย[ชื่อลูกค้าเป้าหมาย], \"\"),\"\")","v":""},{"$f":"IFERROR(IF(ข้อมูลของลูกค้าเป้าหมาย[ปิด\nการคาดการณ์] <>\"\",IF(ข้อมูลของลูกค้าเป้าหมาย[ปิด\nการคาดการณ์]= \"มกราคม\",ข้อมูลของลูกค้าเป้าหมาย[น้ำหนัก \nการคาดการณ์],0),\"\"),\"\")","v":""},{"$f":"IFERROR(IF(ข้อมูลของลูกค้าเป้าหมาย[ปิด\nการคาดการณ์] <>\"\",IF(ข้อมูลของลูกค้าเป้าหมาย[ปิด\nการคาดการณ์] = \"กุมภาพันธ์\",ข้อมูลของลูกค้าเป้าหมาย[น้ำหนัก \nการคาดการณ์],0),\"\"),\"\")","v":""},{"$f":"IFERROR(IF(ข้อมูลของลูกค้าเป้าหมาย[ปิด\nการคาดการณ์] <>\"\",IF(ข้อมูลของลูกค้าเป้าหมาย[ปิด\nการคาดการณ์] = \"มีนาคม\",ข้อมูลของลูกค้าเป้าหมาย[น้ำหนัก \nการคาดการณ์],0),\"\"),\"\")","v":""},{"$f":"IFERROR(IF(ข้อมูลของลูกค้าเป้าหมาย[ปิด\nการคาดการณ์] <>\"\",IF(ข้อมูลของลูกค้าเป้าหมาย[ปิด\nการคาดการณ์] = \"เมษายน\",ข้อมูลของลูกค้าเป้าหมาย[น้ำหนัก \nการคาดการณ์],0),\"\"),\"\")","v":""},{"$f":"IFERROR(IF(ข้อมูลของลูกค้าเป้าหมาย[ปิด\nการคาดการณ์] <>\"\",IF(ข้อมูลของลูกค้าเป้าหมาย[ปิด\nการคาดการณ์] = \"พฤษภาคม\",ข้อมูลของลูกค้าเป้าหมาย[น้ำหนัก \nการคาดการณ์],0),\"\"),\"\")","v":""},{"$f":"IFERROR(IF(ข้อมูลของลูกค้าเป้าหมาย[ปิด\nการคาดการณ์] <>\"\",IF(ข้อมูลของลูกค้าเป้าหมาย[ปิด\nการคาดการณ์] = \"มิถุนายน\",ข้อมูลของลูกค้าเป้าหมาย[น้ำหนัก \nการคาดการณ์],0),\"\"),\"\")","v":""},{"$f":"IFERROR(IF(ข้อมูลของลูกค้าเป้าหมาย[ปิด\nการคาดการณ์] <>\"\",IF(ข้อมูลของลูกค้าเป้าหมาย[ปิด\nการคาดการณ์] = \"กรกฎาคม\",ข้อมูลของลูกค้าเป้าหมาย[น้ำหนัก \nการคาดการณ์],0),\"\"),\"\")","v":""},{"$f":"IFERROR(IF(ข้อมูลของลูกค้าเป้าหมาย[ปิด\nการคาดการณ์] <>\"\",IF(ข้อมูลของลูกค้าเป้าหมาย[ปิด\nการคาดการณ์] = \"สิงหาคม\",ข้อมูลของลูกค้าเป้าหมาย[น้ำหนัก \nการคาดการณ์],0),\"\"),\"\")","v":""},{"$f":"IFERROR(IF(ข้อมูลของลูกค้าเป้าหมาย[ปิด\nการคาดการณ์] <>\"\",IF(ข้อมูลของลูกค้าเป้าหมาย[ปิด\nการคาดการณ์] = \"กันยายน\",ข้อมูลของลูกค้าเป้าหมาย[น้ำหนัก \nการคาดการณ์],0),\"\"),\"\")","v":""},{"$f":"IFERROR(IF(ข้อมูลของลูกค้าเป้าหมาย[ปิด\nการคาดการณ์] <>\"\",IF(ข้อมูลของลูกค้าเป้าหมาย[ปิด\nการคาดการณ์] = \"ตุลาคม\",ข้อมูลของลูกค้าเป้าหมาย[น้ำหนัก \nการคาดการณ์],0),\"\"),\"\")","v":""},{"$f":"IFERROR(IF(ข้อมูลของลูกค้าเป้าหมาย[ปิด\nการคาดการณ์] <>\"\",IF(ข้อมูลของลูกค้าเป้าหมาย[ปิด\nการคาดการณ์] = \"พฤศจิกายน\",ข้อมูลของลูกค้าเป้าหมาย[น้ำหนัก \nการคาดการณ์],0),\"\"),\"\")","v":""},{"$f":"IFERROR(IF(ข้อมูลของลูกค้าเป้าหมาย[ปิด\nการคาดการณ์] <>\"\",IF(ข้อมูลของลูกค้าเป้าหมาย[ปิด\nการคาดการณ์] = \"ธันวาคม\",ข้อมูลของลูกค้าเป้าหมาย[น้ำหนัก \nการคาดการณ์],0),\"\"),\"\")","v":""}]
[null,{"$f":"IFERROR(IF(AND(ข้อมูลของลูกค้าเป้าหมาย[ชื่อลูกค้าเป้าหมาย] <> \"\", ROW(ยอดขายที่คาดการณ์ไว้[ชื่อลูกค้าเป้าหมาย])<>การป้อนข้อมูลล่าสุด),ข้อมูลของลูกค้าเป้าหมาย[ชื่อลูกค้าเป้าหมาย], \"\"),\"\")","v":""},{"$f":"IFERROR(IF(ข้อมูลของลูกค้าเป้าหมาย[ปิด\nการคาดการณ์] <>\"\",IF(ข้อมูลของลูกค้าเป้าหมาย[ปิด\nการคาดการณ์]= \"มกราคม\",ข้อมูลของลูกค้าเป้าหมาย[น้ำหนัก \nการคาดการณ์],0),\"\"),\"\")","v":""},{"$f":"IFERROR(IF(ข้อมูลของลูกค้าเป้าหมาย[ปิด\nการคาดการณ์] <>\"\",IF(ข้อมูลของลูกค้าเป้าหมาย[ปิด\nการคาดการณ์] = \"กุมภาพันธ์\",ข้อมูลของลูกค้าเป้าหมาย[น้ำหนัก \nการคาดการณ์],0),\"\"),\"\")","v":""},{"$f":"IFERROR(IF(ข้อมูลของลูกค้าเป้าหมาย[ปิด\nการคาดการณ์] <>\"\",IF(ข้อมูลของลูกค้าเป้าหมาย[ปิด\nการคาดการณ์] = \"มีนาคม\",ข้อมูลของลูกค้าเป้าหมาย[น้ำหนัก \nการคาดการณ์],0),\"\"),\"\")","v":""},{"$f":"IFERROR(IF(ข้อมูลของลูกค้าเป้าหมาย[ปิด\nการคาดการณ์] <>\"\",IF(ข้อมูลของลูกค้าเป้าหมาย[ปิด\nการคาดการณ์] = \"เมษายน\",ข้อมูลของลูกค้าเป้าหมาย[น้ำหนัก \nการคาดการณ์],0),\"\"),\"\")","v":""},{"$f":"IFERROR(IF(ข้อมูลของลูกค้าเป้าหมาย[ปิด\nการคาดการณ์] <>\"\",IF(ข้อมูลของลูกค้าเป้าหมาย[ปิด\nการคาดการณ์] = \"พฤษภาคม\",ข้อมูลของลูกค้าเป้าหมาย[น้ำหนัก \nการคาดการณ์],0),\"\"),\"\")","v":""},{"$f":"IFERROR(IF(ข้อมูลของลูกค้าเป้าหมาย[ปิด\nการคาดการณ์] <>\"\",IF(ข้อมูลของลูกค้าเป้าหมาย[ปิด\nการคาดการณ์] = \"มิถุนายน\",ข้อมูลของลูกค้าเป้าหมาย[น้ำหนัก \nการคาดการณ์],0),\"\"),\"\")","v":""},{"$f":"IFERROR(IF(ข้อมูลของลูกค้าเป้าหมาย[ปิด\nการคาดการณ์] <>\"\",IF(ข้อมูลของลูกค้าเป้าหมาย[ปิด\nการคาดการณ์] = \"กรกฎาคม\",ข้อมูลของลูกค้าเป้าหมาย[น้ำหนัก \nการคาดการณ์],0),\"\"),\"\")","v":""},{"$f":"IFERROR(IF(ข้อมูลของลูกค้าเป้าหมาย[ปิด\nการคาดการณ์] <>\"\",IF(ข้อมูลของลูกค้าเป้าหมาย[ปิด\nการคาดการณ์] = \"สิงหาคม\",ข้อมูลของลูกค้าเป้าหมาย[น้ำหนัก \nการคาดการณ์],0),\"\"),\"\")","v":""},{"$f":"IFERROR(IF(ข้อมูลของลูกค้าเป้าหมาย[ปิด\nการคาดการณ์] <>\"\",IF(ข้อมูลของลูกค้าเป้าหมาย[ปิด\nการคาดการณ์] = \"กันยายน\",ข้อมูลของลูกค้าเป้าหมาย[น้ำหนัก \nการคาดการณ์],0),\"\"),\"\")","v":""},{"$f":"IFERROR(IF(ข้อมูลของลูกค้าเป้าหมาย[ปิด\nการคาดการณ์] <>\"\",IF(ข้อมูลของลูกค้าเป้าหมาย[ปิด\nการคาดการณ์] = \"ตุลาคม\",ข้อมูลของลูกค้าเป้าหมาย[น้ำหนัก \nการคาดการณ์],0),\"\"),\"\")","v":""},{"$f":"IFERROR(IF(ข้อมูลของลูกค้าเป้าหมาย[ปิด\nการคาดการณ์] <>\"\",IF(ข้อมูลของลูกค้าเป้าหมาย[ปิด\nการคาดการณ์] = \"พฤศจิกายน\",ข้อมูลของลูกค้าเป้าหมาย[น้ำหนัก \nการคาดการณ์],0),\"\"),\"\")","v":""},{"$f":"IFERROR(IF(ข้อมูลของลูกค้าเป้าหมาย[ปิด\nการคาดการณ์] <>\"\",IF(ข้อมูลของลูกค้าเป้าหมาย[ปิด\nการคาดการณ์] = \"ธันวาคม\",ข้อมูลของลูกค้าเป้าหมาย[น้ำหนัก \nการคาดการณ์],0),\"\"),\"\")","v":""}]
[null,{"$f":"IFERROR(IF(AND(ข้อมูลของลูกค้าเป้าหมาย[ชื่อลูกค้าเป้าหมาย] <> \"\", ROW(ยอดขายที่คาดการณ์ไว้[ชื่อลูกค้าเป้าหมาย])<>การป้อนข้อมูลล่าสุด),ข้อมูลของลูกค้าเป้าหมาย[ชื่อลูกค้าเป้าหมาย], \"\"),\"\")","v":""},{"$f":"IFERROR(IF(ข้อมูลของลูกค้าเป้าหมาย[ปิด\nการคาดการณ์] <>\"\",IF(ข้อมูลของลูกค้าเป้าหมาย[ปิด\nการคาดการณ์]= \"มกราคม\",ข้อมูลของลูกค้าเป้าหมาย[น้ำหนัก \nการคาดการณ์],0),\"\"),\"\")","v":""},{"$f":"IFERROR(IF(ข้อมูลของลูกค้าเป้าหมาย[ปิด\nการคาดการณ์] <>\"\",IF(ข้อมูลของลูกค้าเป้าหมาย[ปิด\nการคาดการณ์] = \"กุมภาพันธ์\",ข้อมูลของลูกค้าเป้าหมาย[น้ำหนัก \nการคาดการณ์],0),\"\"),\"\")","v":""},{"$f":"IFERROR(IF(ข้อมูลของลูกค้าเป้าหมาย[ปิด\nการคาดการณ์] <>\"\",IF(ข้อมูลของลูกค้าเป้าหมาย[ปิด\nการคาดการณ์] = \"มีนาคม\",ข้อมูลของลูกค้าเป้าหมาย[น้ำหนัก \nการคาดการณ์],0),\"\"),\"\")","v":""},{"$f":"IFERROR(IF(ข้อมูลของลูกค้าเป้าหมาย[ปิด\nการคาดการณ์] <>\"\",IF(ข้อมูลของลูกค้าเป้าหมาย[ปิด\nการคาดการณ์] = \"เมษายน\",ข้อมูลของลูกค้าเป้าหมาย[น้ำหนัก \nการคาดการณ์],0),\"\"),\"\")","v":""},{"$f":"IFERROR(IF(ข้อมูลของลูกค้าเป้าหมาย[ปิด\nการคาดการณ์] <>\"\",IF(ข้อมูลของลูกค้าเป้าหมาย[ปิด\nการคาดการณ์] = \"พฤษภาคม\",ข้อมูลของลูกค้าเป้าหมาย[น้ำหนัก \nการคาดการณ์],0),\"\"),\"\")","v":""},{"$f":"IFERROR(IF(ข้อมูลของลูกค้าเป้าหมาย[ปิด\nการคาดการณ์] <>\"\",IF(ข้อมูลของลูกค้าเป้าหมาย[ปิด\nการคาดการณ์] = \"มิถุนายน\",ข้อมูลของลูกค้าเป้าหมาย[น้ำหนัก \nการคาดการณ์],0),\"\"),\"\")","v":""},{"$f":"IFERROR(IF(ข้อมูลของลูกค้าเป้าหมาย[ปิด\nการคาดการณ์] <>\"\",IF(ข้อมูลของลูกค้าเป้าหมาย[ปิด\nการคาดการณ์] = \"กรกฎาคม\",ข้อมูลของลูกค้าเป้าหมาย[น้ำหนัก \nการคาดการณ์],0),\"\"),\"\")","v":""},{"$f":"IFERROR(IF(ข้อมูลของลูกค้าเป้าหมาย[ปิด\nการคาดการณ์] <>\"\",IF(ข้อมูลของลูกค้าเป้าหมาย[ปิด\nการคาดการณ์] = \"สิงหาคม\",ข้อมูลของลูกค้าเป้าหมาย[น้ำหนัก \nการคาดการณ์],0),\"\"),\"\")","v":""},{"$f":"IFERROR(IF(ข้อมูลของลูกค้าเป้าหมาย[ปิด\nการคาดการณ์] <>\"\",IF(ข้อมูลของลูกค้าเป้าหมาย[ปิด\nการคาดการณ์] = \"กันยายน\",ข้อมูลของลูกค้าเป้าหมาย[น้ำหนัก \nการคาดการณ์],0),\"\"),\"\")","v":""},{"$f":"IFERROR(IF(ข้อมูลของลูกค้าเป้าหมาย[ปิด\nการคาดการณ์] <>\"\",IF(ข้อมูลของลูกค้าเป้าหมาย[ปิด\nการคาดการณ์] = \"ตุลาคม\",ข้อมูลของลูกค้าเป้าหมาย[น้ำหนัก \nการคาดการณ์],0),\"\"),\"\")","v":""},{"$f":"IFERROR(IF(ข้อมูลของลูกค้าเป้าหมาย[ปิด\nการคาดการณ์] <>\"\",IF(ข้อมูลของลูกค้าเป้าหมาย[ปิด\nการคาดการณ์] = \"พฤศจิกายน\",ข้อมูลของลูกค้าเป้าหมาย[น้ำหนัก \nการคาดการณ์],0),\"\"),\"\")","v":""},{"$f":"IFERROR(IF(ข้อมูลของลูกค้าเป้าหมาย[ปิด\nการคาดการณ์] <>\"\",IF(ข้อมูลของลูกค้าเป้าหมาย[ปิด\nการคาดการณ์] = \"ธันวาคม\",ข้อมูลของลูกค้าเป้าหมาย[น้ำหนัก \nการคาดการณ์],0),\"\"),\"\")","v":""}]
[null,{"$f":"IFERROR(IF(AND(ข้อมูลของลูกค้าเป้าหมาย[ชื่อลูกค้าเป้าหมาย] <> \"\", ROW(ยอดขายที่คาดการณ์ไว้[ชื่อลูกค้าเป้าหมาย])<>การป้อนข้อมูลล่าสุด),ข้อมูลของลูกค้าเป้าหมาย[ชื่อลูกค้าเป้าหมาย], \"\"),\"\")","v":""},{"$f":"IFERROR(IF(ข้อมูลของลูกค้าเป้าหมาย[ปิด\nการคาดการณ์] <>\"\",IF(ข้อมูลของลูกค้าเป้าหมาย[ปิด\nการคาดการณ์]= \"มกราคม\",ข้อมูลของลูกค้าเป้าหมาย[น้ำหนัก \nการคาดการณ์],0),\"\"),\"\")","v":""},{"$f":"IFERROR(IF(ข้อมูลของลูกค้าเป้าหมาย[ปิด\nการคาดการณ์] <>\"\",IF(ข้อมูลของลูกค้าเป้าหมาย[ปิด\nการคาดการณ์] = \"กุมภาพันธ์\",ข้อมูลของลูกค้าเป้าหมาย[น้ำหนัก \nการคาดการณ์],0),\"\"),\"\")","v":""},{"$f":"IFERROR(IF(ข้อมูลของลูกค้าเป้าหมาย[ปิด\nการคาดการณ์] <>\"\",IF(ข้อมูลของลูกค้าเป้าหมาย[ปิด\nการคาดการณ์] = \"มีนาคม\",ข้อมูลของลูกค้าเป้าหมาย[น้ำหนัก \nการคาดการณ์],0),\"\"),\"\")","v":""},{"$f":"IFERROR(IF(ข้อมูลของลูกค้าเป้าหมาย[ปิด\nการคาดการณ์] <>\"\",IF(ข้อมูลของลูกค้าเป้าหมาย[ปิด\nการคาดการณ์] = \"เมษายน\",ข้อมูลของลูกค้าเป้าหมาย[น้ำหนัก \nการคาดการณ์],0),\"\"),\"\")","v":""},{"$f":"IFERROR(IF(ข้อมูลของลูกค้าเป้าหมาย[ปิด\nการคาดการณ์] <>\"\",IF(ข้อมูลของลูกค้าเป้าหมาย[ปิด\nการคาดการณ์] = \"พฤษภาคม\",ข้อมูลของลูกค้าเป้าหมาย[น้ำหนัก \nการคาดการณ์],0),\"\"),\"\")","v":""},{"$f":"IFERROR(IF(ข้อมูลของลูกค้าเป้าหมาย[ปิด\nการคาดการณ์] <>\"\",IF(ข้อมูลของลูกค้าเป้าหมาย[ปิด\nการคาดการณ์] = \"มิถุนายน\",ข้อมูลของลูกค้าเป้าหมาย[น้ำหนัก \nการคาดการณ์],0),\"\"),\"\")","v":""},{"$f":"IFERROR(IF(ข้อมูลของลูกค้าเป้าหมาย[ปิด\nการคาดการณ์] <>\"\",IF(ข้อมูลของลูกค้าเป้าหมาย[ปิด\nการคาดการณ์] = \"กรกฎาคม\",ข้อมูลของลูกค้าเป้าหมาย[น้ำหนัก \nการคาดการณ์],0),\"\"),\"\")","v":""},{"$f":"IFERROR(IF(ข้อมูลของลูกค้าเป้าหมาย[ปิด\nการคาดการณ์] <>\"\",IF(ข้อมูลของลูกค้าเป้าหมาย[ปิด\nการคาดการณ์] = \"สิงหาคม\",ข้อมูลของลูกค้าเป้าหมาย[น้ำหนัก \nการคาดการณ์],0),\"\"),\"\")","v":""},{"$f":"IFERROR(IF(ข้อมูลของลูกค้าเป้าหมาย[ปิด\nการคาดการณ์] <>\"\",IF(ข้อมูลของลูกค้าเป้าหมาย[ปิด\nการคาดการณ์] = \"กันยายน\",ข้อมูลของลูกค้าเป้าหมาย[น้ำหนัก \nการคาดการณ์],0),\"\"),\"\")","v":""},{"$f":"IFERROR(IF(ข้อมูลของลูกค้าเป้าหมาย[ปิด\nการคาดการณ์] <>\"\",IF(ข้อมูลของลูกค้าเป้าหมาย[ปิด\nการคาดการณ์] = \"ตุลาคม\",ข้อมูลของลูกค้าเป้าหมาย[น้ำหนัก \nการคาดการณ์],0),\"\"),\"\")","v":""},{"$f":"IFERROR(IF(ข้อมูลของลูกค้าเป้าหมาย[ปิด\nการคาดการณ์] <>\"\",IF(ข้อมูลของลูกค้าเป้าหมาย[ปิด\nการคาดการณ์] = \"พฤศจิกายน\",ข้อมูลของลูกค้าเป้าหมาย[น้ำหนัก \nการคาดการณ์],0),\"\"),\"\")","v":""},{"$f":"IFERROR(IF(ข้อมูลของลูกค้าเป้าหมาย[ปิด\nการคาดการณ์] <>\"\",IF(ข้อมูลของลูกค้าเป้าหมาย[ปิด\nการคาดการณ์] = \"ธันวาคม\",ข้อมูลของลูกค้าเป้าหมาย[น้ำหนัก \nการคาดการณ์],0),\"\"),\"\")","v":""}]
[null,{"$f":"IFERROR(IF(AND(ข้อมูลของลูกค้าเป้าหมาย[ชื่อลูกค้าเป้าหมาย] <> \"\", ROW(ยอดขายที่คาดการณ์ไว้[ชื่อลูกค้าเป้าหมาย])<>การป้อนข้อมูลล่าสุด),ข้อมูลของลูกค้าเป้าหมาย[ชื่อลูกค้าเป้าหมาย], \"\"),\"\")","v":""},{"$f":"IFERROR(IF(ข้อมูลของลูกค้าเป้าหมาย[ปิด\nการคาดการณ์] <>\"\",IF(ข้อมูลของลูกค้าเป้าหมาย[ปิด\nการคาดการณ์]= \"มกราคม\",ข้อมูลของลูกค้าเป้าหมาย[น้ำหนัก \nการคาดการณ์],0),\"\"),\"\")","v":""},{"$f":"IFERROR(IF(ข้อมูลของลูกค้าเป้าหมาย[ปิด\nการคาดการณ์] <>\"\",IF(ข้อมูลของลูกค้าเป้าหมาย[ปิด\nการคาดการณ์] = \"กุมภาพันธ์\",ข้อมูลของลูกค้าเป้าหมาย[น้ำหนัก \nการคาดการณ์],0),\"\"),\"\")","v":""},{"$f":"IFERROR(IF(ข้อมูลของลูกค้าเป้าหมาย[ปิด\nการคาดการณ์] <>\"\",IF(ข้อมูลของลูกค้าเป้าหมาย[ปิด\nการคาดการณ์] = \"มีนาคม\",ข้อมูลของลูกค้าเป้าหมาย[น้ำหนัก \nการคาดการณ์],0),\"\"),\"\")","v":""},{"$f":"IFERROR(IF(ข้อมูลของลูกค้าเป้าหมาย[ปิด\nการคาดการณ์] <>\"\",IF(ข้อมูลของลูกค้าเป้าหมาย[ปิด\nการคาดการณ์] = \"เมษายน\",ข้อมูลของลูกค้าเป้าหมาย[น้ำหนัก \nการคาดการณ์],0),\"\"),\"\")","v":""},{"$f":"IFERROR(IF(ข้อมูลของลูกค้าเป้าหมาย[ปิด\nการคาดการณ์] <>\"\",IF(ข้อมูลของลูกค้าเป้าหมาย[ปิด\nการคาดการณ์] = \"พฤษภาคม\",ข้อมูลของลูกค้าเป้าหมาย[น้ำหนัก \nการคาดการณ์],0),\"\"),\"\")","v":""},{"$f":"IFERROR(IF(ข้อมูลของลูกค้าเป้าหมาย[ปิด\nการคาดการณ์] <>\"\",IF(ข้อมูลของลูกค้าเป้าหมาย[ปิด\nการคาดการณ์] = \"มิถุนายน\",ข้อมูลของลูกค้าเป้าหมาย[น้ำหนัก \nการคาดการณ์],0),\"\"),\"\")","v":""},{"$f":"IFERROR(IF(ข้อมูลของลูกค้าเป้าหมาย[ปิด\nการคาดการณ์] <>\"\",IF(ข้อมูลของลูกค้าเป้าหมาย[ปิด\nการคาดการณ์] = \"กรกฎาคม\",ข้อมูลของลูกค้าเป้าหมาย[น้ำหนัก \nการคาดการณ์],0),\"\"),\"\")","v":""},{"$f":"IFERROR(IF(ข้อมูลของลูกค้าเป้าหมาย[ปิด\nการคาดการณ์] <>\"\",IF(ข้อมูลของลูกค้าเป้าหมาย[ปิด\nการคาดการณ์] = \"สิงหาคม\",ข้อมูลของลูกค้าเป้าหมาย[น้ำหนัก \nการคาดการณ์],0),\"\"),\"\")","v":""},{"$f":"IFERROR(IF(ข้อมูลของลูกค้าเป้าหมาย[ปิด\nการคาดการณ์] <>\"\",IF(ข้อมูลของลูกค้าเป้าหมาย[ปิด\nการคาดการณ์] = \"กันยายน\",ข้อมูลของลูกค้าเป้าหมาย[น้ำหนัก \nการคาดการณ์],0),\"\"),\"\")","v":""},{"$f":"IFERROR(IF(ข้อมูลของลูกค้าเป้าหมาย[ปิด\nการคาดการณ์] <>\"\",IF(ข้อมูลของลูกค้าเป้าหมาย[ปิด\nการคาดการณ์] = \"ตุลาคม\",ข้อมูลของลูกค้าเป้าหมาย[น้ำหนัก \nการคาดการณ์],0),\"\"),\"\")","v":""},{"$f":"IFERROR(IF(ข้อมูลของลูกค้าเป้าหมาย[ปิด\nการคาดการณ์] <>\"\",IF(ข้อมูลของลูกค้าเป้าหมาย[ปิด\nการคาดการณ์] = \"พฤศจิกายน\",ข้อมูลของลูกค้าเป้าหมาย[น้ำหนัก \nการคาดการณ์],0),\"\"),\"\")","v":""},{"$f":"IFERROR(IF(ข้อมูลของลูกค้าเป้าหมาย[ปิด\nการคาดการณ์] <>\"\",IF(ข้อมูลของลูกค้าเป้าหมาย[ปิด\nการคาดการณ์] = \"ธันวาคม\",ข้อมูลของลูกค้าเป้าหมาย[น้ำหนัก \nการคาดการณ์],0),\"\"),\"\")","v":""}]
[null,{"$f":"IFERROR(IF(AND(ข้อมูลของลูกค้าเป้าหมาย[ชื่อลูกค้าเป้าหมาย] <> \"\", ROW(ยอดขายที่คาดการณ์ไว้[ชื่อลูกค้าเป้าหมาย])<>การป้อนข้อมูลล่าสุด),ข้อมูลของลูกค้าเป้าหมาย[ชื่อลูกค้าเป้าหมาย], \"\"),\"\")","v":""},{"$f":"IFERROR(IF(ข้อมูลของลูกค้าเป้าหมาย[ปิด\nการคาดการณ์] <>\"\",IF(ข้อมูลของลูกค้าเป้าหมาย[ปิด\nการคาดการณ์]= \"มกราคม\",ข้อมูลของลูกค้าเป้าหมาย[น้ำหนัก \nการคาดการณ์],0),\"\"),\"\")","v":""},{"$f":"IFERROR(IF(ข้อมูลของลูกค้าเป้าหมาย[ปิด\nการคาดการณ์] <>\"\",IF(ข้อมูลของลูกค้าเป้าหมาย[ปิด\nการคาดการณ์] = \"กุมภาพันธ์\",ข้อมูลของลูกค้าเป้าหมาย[น้ำหนัก \nการคาดการณ์],0),\"\"),\"\")","v":""},{"$f":"IFERROR(IF(ข้อมูลของลูกค้าเป้าหมาย[ปิด\nการคาดการณ์] <>\"\",IF(ข้อมูลของลูกค้าเป้าหมาย[ปิด\nการคาดการณ์] = \"มีนาคม\",ข้อมูลของลูกค้าเป้าหมาย[น้ำหนัก \nการคาดการณ์],0),\"\"),\"\")","v":""},{"$f":"IFERROR(IF(ข้อมูลของลูกค้าเป้าหมาย[ปิด\nการคาดการณ์] <>\"\",IF(ข้อมูลของลูกค้าเป้าหมาย[ปิด\nการคาดการณ์] = \"เมษายน\",ข้อมูลของลูกค้าเป้าหมาย[น้ำหนัก \nการคาดการณ์],0),\"\"),\"\")","v":""},{"$f":"IFERROR(IF(ข้อมูลของลูกค้าเป้าหมาย[ปิด\nการคาดการณ์] <>\"\",IF(ข้อมูลของลูกค้าเป้าหมาย[ปิด\nการคาดการณ์] = \"พฤษภาคม\",ข้อมูลของลูกค้าเป้าหมาย[น้ำหนัก \nการคาดการณ์],0),\"\"),\"\")","v":""},{"$f":"IFERROR(IF(ข้อมูลของลูกค้าเป้าหมาย[ปิด\nการคาดการณ์] <>\"\",IF(ข้อมูลของลูกค้าเป้าหมาย[ปิด\nการคาดการณ์] = \"มิถุนายน\",ข้อมูลของลูกค้าเป้าหมาย[น้ำหนัก \nการคาดการณ์],0),\"\"),\"\")","v":""},{"$f":"IFERROR(IF(ข้อมูลของลูกค้าเป้าหมาย[ปิด\nการคาดการณ์] <>\"\",IF(ข้อมูลของลูกค้าเป้าหมาย[ปิด\nการคาดการณ์] = \"กรกฎาคม\",ข้อมูลของลูกค้าเป้าหมาย[น้ำหนัก \nการคาดการณ์],0),\"\"),\"\")","v":""},{"$f":"IFERROR(IF(ข้อมูลของลูกค้าเป้าหมาย[ปิด\nการคาดการณ์] <>\"\",IF(ข้อมูลของลูกค้าเป้าหมาย[ปิด\nการคาดการณ์] = \"สิงหาคม\",ข้อมูลของลูกค้าเป้าหมาย[น้ำหนัก \nการคาดการณ์],0),\"\"),\"\")","v":""},{"$f":"IFERROR(IF(ข้อมูลของลูกค้าเป้าหมาย[ปิด\nการคาดการณ์] <>\"\",IF(ข้อมูลของลูกค้าเป้าหมาย[ปิด\nการคาดการณ์] = \"กันยายน\",ข้อมูลของลูกค้าเป้าหมาย[น้ำหนัก \nการคาดการณ์],0),\"\"),\"\")","v":""},{"$f":"IFERROR(IF(ข้อมูลของลูกค้าเป้าหมาย[ปิด\nการคาดการณ์] <>\"\",IF(ข้อมูลของลูกค้าเป้าหมาย[ปิด\nการคาดการณ์] = \"ตุลาคม\",ข้อมูลของลูกค้าเป้าหมาย[น้ำหนัก \nการคาดการณ์],0),\"\"),\"\")","v":""},{"$f":"IFERROR(IF(ข้อมูลของลูกค้าเป้าหมาย[ปิด\nการคาดการณ์] <>\"\",IF(ข้อมูลของลูกค้าเป้าหมาย[ปิด\nการคาดการณ์] = \"พฤศจิกายน\",ข้อมูลของลูกค้าเป้าหมาย[น้ำหนัก \nการคาดการณ์],0),\"\"),\"\")","v":""},{"$f":"IFERROR(IF(ข้อมูลของลูกค้าเป้าหมาย[ปิด\nการคาดการณ์] <>\"\",IF(ข้อมูลของลูกค้าเป้าหมาย[ปิด\nการคาดการณ์] = \"ธันวาคม\",ข้อมูลของลูกค้าเป้าหมาย[น้ำหนัก \nการคาดการณ์],0),\"\"),\"\")","v":""}]
[null,{"$f":"IFERROR(IF(AND(ข้อมูลของลูกค้าเป้าหมาย[ชื่อลูกค้าเป้าหมาย] <> \"\", ROW(ยอดขายที่คาดการณ์ไว้[ชื่อลูกค้าเป้าหมาย])<>การป้อนข้อมูลล่าสุด),ข้อมูลของลูกค้าเป้าหมาย[ชื่อลูกค้าเป้าหมาย], \"\"),\"\")","v":""},{"$f":"IFERROR(IF(ข้อมูลของลูกค้าเป้าหมาย[ปิด\nการคาดการณ์] <>\"\",IF(ข้อมูลของลูกค้าเป้าหมาย[ปิด\nการคาดการณ์]= \"มกราคม\",ข้อมูลของลูกค้าเป้าหมาย[น้ำหนัก \nการคาดการณ์],0),\"\"),\"\")","v":""},{"$f":"IFERROR(IF(ข้อมูลของลูกค้าเป้าหมาย[ปิด\nการคาดการณ์] <>\"\",IF(ข้อมูลของลูกค้าเป้าหมาย[ปิด\nการคาดการณ์] = \"กุมภาพันธ์\",ข้อมูลของลูกค้าเป้าหมาย[น้ำหนัก \nการคาดการณ์],0),\"\"),\"\")","v":""},{"$f":"IFERROR(IF(ข้อมูลของลูกค้าเป้าหมาย[ปิด\nการคาดการณ์] <>\"\",IF(ข้อมูลของลูกค้าเป้าหมาย[ปิด\nการคาดการณ์] = \"มีนาคม\",ข้อมูลของลูกค้าเป้าหมาย[น้ำหนัก \nการคาดการณ์],0),\"\"),\"\")","v":""},{"$f":"IFERROR(IF(ข้อมูลของลูกค้าเป้าหมาย[ปิด\nการคาดการณ์] <>\"\",IF(ข้อมูลของลูกค้าเป้าหมาย[ปิด\nการคาดการณ์] = \"เมษายน\",ข้อมูลของลูกค้าเป้าหมาย[น้ำหนัก \nการคาดการณ์],0),\"\"),\"\")","v":""},{"$f":"IFERROR(IF(ข้อมูลของลูกค้าเป้าหมาย[ปิด\nการคาดการณ์] <>\"\",IF(ข้อมูลของลูกค้าเป้าหมาย[ปิด\nการคาดการณ์] = \"พฤษภาคม\",ข้อมูลของลูกค้าเป้าหมาย[น้ำหนัก \nการคาดการณ์],0),\"\"),\"\")","v":""},{"$f":"IFERROR(IF(ข้อมูลของลูกค้าเป้าหมาย[ปิด\nการคาดการณ์] <>\"\",IF(ข้อมูลของลูกค้าเป้าหมาย[ปิด\nการคาดการณ์] = \"มิถุนายน\",ข้อมูลของลูกค้าเป้าหมาย[น้ำหนัก \nการคาดการณ์],0),\"\"),\"\")","v":""},{"$f":"IFERROR(IF(ข้อมูลของลูกค้าเป้าหมาย[ปิด\nการคาดการณ์] <>\"\",IF(ข้อมูลของลูกค้าเป้าหมาย[ปิด\nการคาดการณ์] = \"กรกฎาคม\",ข้อมูลของลูกค้าเป้าหมาย[น้ำหนัก \nการคาดการณ์],0),\"\"),\"\")","v":""},{"$f":"IFERROR(IF(ข้อมูลของลูกค้าเป้าหมาย[ปิด\nการคาดการณ์] <>\"\",IF(ข้อมูลของลูกค้าเป้าหมาย[ปิด\nการคาดการณ์] = \"สิงหาคม\",ข้อมูลของลูกค้าเป้าหมาย[น้ำหนัก \nการคาดการณ์],0),\"\"),\"\")","v":""},{"$f":"IFERROR(IF(ข้อมูลของลูกค้าเป้าหมาย[ปิด\nการคาดการณ์] <>\"\",IF(ข้อมูลของลูกค้าเป้าหมาย[ปิด\nการคาดการณ์] = \"กันยายน\",ข้อมูลของลูกค้าเป้าหมาย[น้ำหนัก \nการคาดการณ์],0),\"\"),\"\")","v":""},{"$f":"IFERROR(IF(ข้อมูลของลูกค้าเป้าหมาย[ปิด\nการคาดการณ์] <>\"\",IF(ข้อมูลของลูกค้าเป้าหมาย[ปิด\nการคาดการณ์] = \"ตุลาคม\",ข้อมูลของลูกค้าเป้าหมาย[น้ำหนัก \nการคาดการณ์],0),\"\"),\"\")","v":""},{"$f":"IFERROR(IF(ข้อมูลของลูกค้าเป้าหมาย[ปิด\nการคาดการณ์] <>\"\",IF(ข้อมูลของลูกค้าเป้าหมาย[ปิด\nการคาดการณ์] = \"พฤศจิกายน\",ข้อมูลของลูกค้าเป้าหมาย[น้ำหนัก \nการคาดการณ์],0),\"\"),\"\")","v":""},{"$f":"IFERROR(IF(ข้อมูลของลูกค้าเป้าหมาย[ปิด\nการคาดการณ์] <>\"\",IF(ข้อมูลของลูกค้าเป้าหมาย[ปิด\nการคาดการณ์] = \"ธันวาคม\",ข้อมูลของลูกค้าเป้าหมาย[น้ำหนัก \nการคาดการณ์],0),\"\"),\"\")","v":""}]
[null,{"$f":"IFERROR(IF(AND(ข้อมูลของลูกค้าเป้าหมาย[ชื่อลูกค้าเป้าหมาย] <> \"\", ROW(ยอดขายที่คาดการณ์ไว้[ชื่อลูกค้าเป้าหมาย])<>การป้อนข้อมูลล่าสุด),ข้อมูลของลูกค้าเป้าหมาย[ชื่อลูกค้าเป้าหมาย], \"\"),\"\")","v":""},{"$f":"IFERROR(IF(ข้อมูลของลูกค้าเป้าหมาย[ปิด\nการคาดการณ์] <>\"\",IF(ข้อมูลของลูกค้าเป้าหมาย[ปิด\nการคาดการณ์]= \"มกราคม\",ข้อมูลของลูกค้าเป้าหมาย[น้ำหนัก \nการคาดการณ์],0),\"\"),\"\")","v":""},{"$f":"IFERROR(IF(ข้อมูลของลูกค้าเป้าหมาย[ปิด\nการคาดการณ์] <>\"\",IF(ข้อมูลของลูกค้าเป้าหมาย[ปิด\nการคาดการณ์] = \"กุมภาพันธ์\",ข้อมูลของลูกค้าเป้าหมาย[น้ำหนัก \nการคาดการณ์],0),\"\"),\"\")","v":""},{"$f":"IFERROR(IF(ข้อมูลของลูกค้าเป้าหมาย[ปิด\nการคาดการณ์] <>\"\",IF(ข้อมูลของลูกค้าเป้าหมาย[ปิด\nการคาดการณ์] = \"มีนาคม\",ข้อมูลของลูกค้าเป้าหมาย[น้ำหนัก \nการคาดการณ์],0),\"\"),\"\")","v":""},{"$f":"IFERROR(IF(ข้อมูลของลูกค้าเป้าหมาย[ปิด\nการคาดการณ์] <>\"\",IF(ข้อมูลของลูกค้าเป้าหมาย[ปิด\nการคาดการณ์] = \"เมษายน\",ข้อมูลของลูกค้าเป้าหมาย[น้ำหนัก \nการคาดการณ์],0),\"\"),\"\")","v":""},{"$f":"IFERROR(IF(ข้อมูลของลูกค้าเป้าหมาย[ปิด\nการคาดการณ์] <>\"\",IF(ข้อมูลของลูกค้าเป้าหมาย[ปิด\nการคาดการณ์] = \"พฤษภาคม\",ข้อมูลของลูกค้าเป้าหมาย[น้ำหนัก \nการคาดการณ์],0),\"\"),\"\")","v":""},{"$f":"IFERROR(IF(ข้อมูลของลูกค้าเป้าหมาย[ปิด\nการคาดการณ์] <>\"\",IF(ข้อมูลของลูกค้าเป้าหมาย[ปิด\nการคาดการณ์] = \"มิถุนายน\",ข้อมูลของลูกค้าเป้าหมาย[น้ำหนัก \nการคาดการณ์],0),\"\"),\"\")","v":""},{"$f":"IFERROR(IF(ข้อมูลของลูกค้าเป้าหมาย[ปิด\nการคาดการณ์] <>\"\",IF(ข้อมูลของลูกค้าเป้าหมาย[ปิด\nการคาดการณ์] = \"กรกฎาคม\",ข้อมูลของลูกค้าเป้าหมาย[น้ำหนัก \nการคาดการณ์],0),\"\"),\"\")","v":""},{"$f":"IFERROR(IF(ข้อมูลของลูกค้าเป้าหมาย[ปิด\nการคาดการณ์] <>\"\",IF(ข้อมูลของลูกค้าเป้าหมาย[ปิด\nการคาดการณ์] = \"สิงหาคม\",ข้อมูลของลูกค้าเป้าหมาย[น้ำหนัก \nการคาดการณ์],0),\"\"),\"\")","v":""},{"$f":"IFERROR(IF(ข้อมูลของลูกค้าเป้าหมาย[ปิด\nการคาดการณ์] <>\"\",IF(ข้อมูลของลูกค้าเป้าหมาย[ปิด\nการคาดการณ์] = \"กันยายน\",ข้อมูลของลูกค้าเป้าหมาย[น้ำหนัก \nการคาดการณ์],0),\"\"),\"\")","v":""},{"$f":"IFERROR(IF(ข้อมูลของลูกค้าเป้าหมาย[ปิด\nการคาดการณ์] <>\"\",IF(ข้อมูลของลูกค้าเป้าหมาย[ปิด\nการคาดการณ์] = \"ตุลาคม\",ข้อมูลของลูกค้าเป้าหมาย[น้ำหนัก \nการคาดการณ์],0),\"\"),\"\")","v":""},{"$f":"IFERROR(IF(ข้อมูลของลูกค้าเป้าหมาย[ปิด\nการคาดการณ์] <>\"\",IF(ข้อมูลของลูกค้าเป้าหมาย[ปิด\nการคาดการณ์] = \"พฤศจิกายน\",ข้อมูลของลูกค้าเป้าหมาย[น้ำหนัก \nการคาดการณ์],0),\"\"),\"\")","v":""},{"$f":"IFERROR(IF(ข้อมูลของลูกค้าเป้าหมาย[ปิด\nการคาดการณ์] <>\"\",IF(ข้อมูลของลูกค้าเป้าหมาย[ปิด\nการคาดการณ์] = \"ธันวาคม\",ข้อมูลของลูกค้าเป้าหมาย[น้ำหนัก \nการคาดการณ์],0),\"\"),\"\")","v":""}]
[null,{"$f":"IFERROR(IF(AND(ข้อมูลของลูกค้าเป้าหมาย[ชื่อลูกค้าเป้าหมาย] <> \"\", ROW(ยอดขายที่คาดการณ์ไว้[ชื่อลูกค้าเป้าหมาย])<>การป้อนข้อมูลล่าสุด),ข้อมูลของลูกค้าเป้าหมาย[ชื่อลูกค้าเป้าหมาย], \"\"),\"\")","v":""},{"$f":"IFERROR(IF(ข้อมูลของลูกค้าเป้าหมาย[ปิด\nการคาดการณ์] <>\"\",IF(ข้อมูลของลูกค้าเป้าหมาย[ปิด\nการคาดการณ์]= \"มกราคม\",ข้อมูลของลูกค้าเป้าหมาย[น้ำหนัก \nการคาดการณ์],0),\"\"),\"\")","v":""},{"$f":"IFERROR(IF(ข้อมูลของลูกค้าเป้าหมาย[ปิด\nการคาดการณ์] <>\"\",IF(ข้อมูลของลูกค้าเป้าหมาย[ปิด\nการคาดการณ์] = \"กุมภาพันธ์\",ข้อมูลของลูกค้าเป้าหมาย[น้ำหนัก \nการคาดการณ์],0),\"\"),\"\")","v":""},{"$f":"IFERROR(IF(ข้อมูลของลูกค้าเป้าหมาย[ปิด\nการคาดการณ์] <>\"\",IF(ข้อมูลของลูกค้าเป้าหมาย[ปิด\nการคาดการณ์] = \"มีนาคม\",ข้อมูลของลูกค้าเป้าหมาย[น้ำหนัก \nการคาดการณ์],0),\"\"),\"\")","v":""},{"$f":"IFERROR(IF(ข้อมูลของลูกค้าเป้าหมาย[ปิด\nการคาดการณ์] <>\"\",IF(ข้อมูลของลูกค้าเป้าหมาย[ปิด\nการคาดการณ์] = \"เมษายน\",ข้อมูลของลูกค้าเป้าหมาย[น้ำหนัก \nการคาดการณ์],0),\"\"),\"\")","v":""},{"$f":"IFERROR(IF(ข้อมูลของลูกค้าเป้าหมาย[ปิด\nการคาดการณ์] <>\"\",IF(ข้อมูลของลูกค้าเป้าหมาย[ปิด\nการคาดการณ์] = \"พฤษภาคม\",ข้อมูลของลูกค้าเป้าหมาย[น้ำหนัก \nการคาดการณ์],0),\"\"),\"\")","v":""},{"$f":"IFERROR(IF(ข้อมูลของลูกค้าเป้าหมาย[ปิด\nการคาดการณ์] <>\"\",IF(ข้อมูลของลูกค้าเป้าหมาย[ปิด\nการคาดการณ์] = \"มิถุนายน\",ข้อมูลของลูกค้าเป้าหมาย[น้ำหนัก \nการคาดการณ์],0),\"\"),\"\")","v":""},{"$f":"IFERROR(IF(ข้อมูลของลูกค้าเป้าหมาย[ปิด\nการคาดการณ์] <>\"\",IF(ข้อมูลของลูกค้าเป้าหมาย[ปิด\nการคาดการณ์] = \"กรกฎาคม\",ข้อมูลของลูกค้าเป้าหมาย[น้ำหนัก \nการคาดการณ์],0),\"\"),\"\")","v":""},{"$f":"IFERROR(IF(ข้อมูลของลูกค้าเป้าหมาย[ปิด\nการคาดการณ์] <>\"\",IF(ข้อมูลของลูกค้าเป้าหมาย[ปิด\nการคาดการณ์] = \"สิงหาคม\",ข้อมูลของลูกค้าเป้าหมาย[น้ำหนัก \nการคาดการณ์],0),\"\"),\"\")","v":""},{"$f":"IFERROR(IF(ข้อมูลของลูกค้าเป้าหมาย[ปิด\nการคาดการณ์] <>\"\",IF(ข้อมูลของลูกค้าเป้าหมาย[ปิด\nการคาดการณ์] = \"กันยายน\",ข้อมูลของลูกค้าเป้าหมาย[น้ำหนัก \nการคาดการณ์],0),\"\"),\"\")","v":""},{"$f":"IFERROR(IF(ข้อมูลของลูกค้าเป้าหมาย[ปิด\nการคาดการณ์] <>\"\",IF(ข้อมูลของลูกค้าเป้าหมาย[ปิด\nการคาดการณ์] = \"ตุลาคม\",ข้อมูลของลูกค้าเป้าหมาย[น้ำหนัก \nการคาดการณ์],0),\"\"),\"\")","v":""},{"$f":"IFERROR(IF(ข้อมูลของลูกค้าเป้าหมาย[ปิด\nการคาดการณ์] <>\"\",IF(ข้อมูลของลูกค้าเป้าหมาย[ปิด\nการคาดการณ์] = \"พฤศจิกายน\",ข้อมูลของลูกค้าเป้าหมาย[น้ำหนัก \nการคาดการณ์],0),\"\"),\"\")","v":""},{"$f":"IFERROR(IF(ข้อมูลของลูกค้าเป้าหมาย[ปิด\nการคาดการณ์] <>\"\",IF(ข้อมูลของลูกค้าเป้าหมาย[ปิด\nการคาดการณ์] = \"ธันวาคม\",ข้อมูลของลูกค้าเป้าหมาย[น้ำหนัก \nการคาดการณ์],0),\"\"),\"\")","v":""}]
[null,"ผลรวม",{"$f":"SUBTOTAL(109,ยอดขายที่คาดการณ์ไว้[การคาดการณ์\nมกราคม])","v":{"v":270000,"d":"฿270,000"}},{"$f":"SUBTOTAL(109,ยอดขายที่คาดการณ์ไว้[การคาดการณ์\nกุมภาพันธ์])","v":{"v":20000,"d":"฿20,000"}},{"$f":"SUBTOTAL(109,ยอดขายที่คาดการณ์ไว้[การคาดการณ์\nมีนาคม ])","v":{"v":20000,"d":"฿20,000"}},{"$f":"SUBTOTAL(109,ยอดขายที่คาดการณ์ไว้[การคาดการณ์\nเมษายน])","v":{"v":0,"d":"฿0"}},{"$f":"SUBTOTAL(109,ยอดขายที่คาดการณ์ไว้[การคาดการณ์\nพฤษภาคม])","v":{"v":0,"d":"฿0"}},{"$f":"SUBTOTAL(109,ยอดขายที่คาดการณ์ไว้[การคาดการณ์\nมิถุนายน])","v":{"v":0,"d":"฿0"}},{"$f":"SUBTOTAL(109,ยอดขายที่คาดการณ์ไว้[การคาดการณ์\nกรกฎาคม])","v":{"v":0,"d":"฿0"}},{"$f":"SUBTOTAL(109,ยอดขายที่คาดการณ์ไว้[การคาดการณ์\nสิงหาคม])","v":{"v":0,"d":"฿0"}},{"$f":"SUBTOTAL(109,ยอดขายที่คาดการณ์ไว้[การคาดการณ์\nกันยายน])","v":{"v":0,"d":"฿0"}},{"$f":"SUBTOTAL(109,ยอดขายที่คาดการณ์ไว้[การคาดการณ์\nตุลาคม])","v":{"v":0,"d":"฿0"}},{"$f":"SUBTOTAL(109,ยอดขายที่คาดการณ์ไว้[การคาดการณ์\nพฤศจิกายน])","v":{"v":0,"d":"฿0"}},{"$f":"SUBTOTAL(109,ยอดขายที่คาดการณ์ไว้[การคาดการณ์\nธันวาคม])","v":{"v":0,"d":"฿0"}}]
[null,"ยอดรวมสะสม",{"$f":"C20","v":{"v":270000,"d":"฿270,000"}},{"$f":"C21+D20","v":{"v":290000,"d":"฿290,000"}},{"$f":"D21+E20","v":{"v":310000,"d":"฿310,000"}},{"$f":"E21+F20","v":{"v":310000,"d":"฿310,000"}},{"$f":"F21+G20","v":{"v":310000,"d":"฿310,000"}},{"$f":"G21+H20","v":{"v":310000,"d":"฿310,000"}},{"$f":"H21+I20","v":{"v":310000,"d":"฿310,000"}},{"$f":"I21+J20","v":{"v":310000,"d":"฿310,000"}},{"$f":"J21+K20","v":{"v":310000,"d":"฿310,000"}},{"$f":"K21+L20","v":{"v":310000,"d":"฿310,000"}},{"$f":"L21+M20","v":{"v":310000,"d":"฿310,000"}},{"$f":"M21+N20","v":{"v":310000,"d":"฿310,000"}}]

{"sheet":"น้ำหนักการคาดการณ์รายเดือน","index":2,"n_rows":3,"n_cols":2,"rows_kept":3}
[null,{"$f":"ชื่อบริษัท","v":"ชื่อบริษัท"}]
[null,"น้ำหนักการคาดการณ์รายเดือน"]
[null," "]